bitfinex/quotes_BTCUSD_20240817
["timestamp","ask_amount","ask_price","bid_price","bid_amount"]
[1723898816165,0.00824,59353.0,59352.0,2.44579367]
[1723898816377,0.00824,59353.0,59352.0,2.45779367]
[1723898817190,0.00824,59353.0,59352.0,2.45979367]
[1723898817395,0.00824,59353.0,59352.0,2.45779367]
[1723898819021,0.00824,59353.0,59352.0,2.39366283]
[1723898819220,0.00824,59353.0,59352.0,2.45779438]
[1723898819976,0.00824,59353.0,59352.0,2.45979438]
[1723898820199,0.28127101,59356.0,59355.0,1.391938]
[1723898820320,0.28127101,59356.0,59355.0,2.4784511]
[1723898820770,0.28127101,59356.0,59355.0,2.47836333]
[1723898820945,0.28127101,59356.0,59355.0,2.48036333]
[1723898821347,0.28127101,59356.0,59355.0,2.50436333]
[1723898821560,0.2720366,59356.0,59355.0,2.41606692]
[1723898821807,0.2720366,59356.0,59355.0,2.42006692]
[1723898822220,0.2720366,59356.0,59355.0,2.32294434]
[1723898822429,0.2720366,59356.0,59355.0,2.41804471]
[1723898822697,0.2720366,59356.0,59355.0,2.41604471]
[1723898823130,0.2720366,59356.0,59355.0,2.41804471]
[1723898823334,0.2719966,59356.0,59355.0,2.42802459]
[1723898823750,0.2719966,59356.0,59355.0,2.43002459]
[1723898823958,0.2719966,59356.0,59355.0,2.42602459]
[1723898824165,0.2719966,59356.0,59355.0,2.43222266]
[1723898824576,0.2719966,59356.0,59355.0,2.43219143]
[1723898824785,0.2719966,59356.0,59355.0,2.43419143]
[1723898825417,0.2719966,59356.0,59355.0,2.43019143]
[1723898825653,0.2719966,59356.0,59355.0,2.43419143]
[1723898825846,0.2046066,59356.0,59355.0,2.68690743]
[1723898826247,0.2046066,59356.0,59355.0,2.68688203]
[1723898826669,0.19486271,59356.0,59355.0,2.68288203]
[1723898827706,0.12747271,59356.0,59355.0,2.68488203]
[1723898828119,7.1e-07,59356.0,59355.0,2.83539347]
[1723898828769,7.1e-07,59356.0,59355.0,2.83739347]
[1723898829176,7.1e-07,59356.0,59355.0,2.83739398]
[1723898830218,7.1e-07,59356.0,59355.0,2.82815595]
[1723898830418,7.1e-07,59356.0,59355.0,2.83739086]
[1723898832296,7.1e-07,59356.0,59355.0,2.83339086]
[1723898833258,7.1e-07,59356.0,59355.0,2.68378398]
[1723898833468,0.00082471,59356.0,59355.0,2.68378398]
[1723898833850,0.00082471,59356.0,59355.0,2.68377882]
[1723898834271,0.00082471,59356.0,59355.0,2.68377719]
[1723898834444,0.00082471,59356.0,59355.0,2.58870697]
[1723898834800,0.00082471,59356.0,59355.0,2.6837598]
[1723898835001,0.00082471,59356.0,59355.0,2.6857598]
[1723898835246,0.00082471,59356.0,59355.0,2.6837598]
[1723898835871,0.00082471,59356.0,59355.0,2.83616697]
[1723898836284,0.00082471,59356.0,59355.0,2.83416697]
[1723898836488,0.00082471,59356.0,59355.0,2.83616697]
[1723898836832,0.00082471,59356.0,59355.0,2.83416697]
[1723898837685,0.00082471,59356.0,59355.0,2.6857598]
[1723898838053,0.00082471,59356.0,59355.0,2.6837598]
[1723898838259,0.00082471,59356.0,59355.0,2.90584539]
[1723898839559,0.00082471,59356.0,59355.0,2.9581723]
[1723898839766,0.00082471,59356.0,59355.0,2.76219577]
[1723898840381,0.00082471,59356.0,59355.0,2.80769973]
[1723898842530,0.00082471,59356.0,59355.0,2.87518073]
[1723898843229,0.00082471,59356.0,59355.0,2.80910383]
[1723898843463,0.00082471,59356.0,59355.0,2.8751873]
[1723898844239,0.00082471,59356.0,59355.0,2.59569313]
[1723898844540,0.00082471,59356.0,59355.0,2.58561922]
[1723898846303,0.00082471,59356.0,59355.0,2.59569313]
[1723898847735,0.00082471,59356.0,59355.0,2.59570609]
[1723898847967,0.00082471,59356.0,59355.0,2.59972618]
[1723898848201,0.00082471,59356.0,59355.0,2.59572618]
[1723898848461,0.00082471,59356.0,59355.0,2.5856517]
[1723898848696,0.00082471,59356.0,59355.0,2.5957261]
[1723898849407,0.00082471,59356.0,59355.0,2.80788637]
[1723898849643,0.00082471,59356.0,59355.0,2.5856517]
[1723898849886,0.00082471,59356.0,59355.0,2.80788637]
[1723898850354,0.00082471,59356.0,59355.0,2.5856517]
[1723898851562,0.00082471,59356.0,59355.0,2.5876517]
[1723898853258,0.00082471,59356.0,59355.0,3.10874027]
[1723898856099,0.00082471,59356.0,59355.0,3.04265527]
[1723898856315,0.00082471,59356.0,59355.0,3.10876038]
[1723898857129,0.00082471,59356.0,59355.0,3.10875202]
[1723898857506,0.00082471,59356.0,59355.0,3.11075202]
[1723898857908,0.00082471,59356.0,59355.0,3.10875202]
[1723898858121,0.00082471,59356.0,59355.0,3.0250309]
[1723898858328,0.00082471,59356.0,59355.0,3.10876723]
[1723898858495,0.00082471,59356.0,59355.0,3.11077938]
[1723898858683,0.00082471,59356.0,59355.0,3.10877938]
[1723898858880,0.13692471,59356.0,59355.0,3.01437938]
[1723898859082,0.13692471,59356.0,59355.0,3.11885819]
[1723898859507,0.13692471,59356.0,59355.0,3.10877938]
[1723898860297,0.13692471,59356.0,59355.0,3.04267469]
[1723898860487,0.13692471,59356.0,59355.0,3.10882535]
[1723898861376,0.00082471,59356.0,59355.0,3.10882535]
[1723898861767,0.00082471,59356.0,59355.0,3.10886243]
[1723898864254,0.00082471,59356.0,59355.0,3.11894557]
[1723898864461,0.00082471,59356.0,59355.0,3.10886243]
[1723898865916,0.13692471,59356.0,59355.0,2.76174643]
[1723898866121,0.13692471,59356.0,59355.0,2.85614643]
[1723898866539,0.13692471,59356.0,59355.0,2.85615557]
[1723898868632,0.13692471,59356.0,59355.0,2.85619911]
[1723898869481,0.13692471,59356.0,59355.0,2.74048512]
[1723898869681,0.13692471,59356.0,59355.0,2.85620289]
[1723898870305,0.13692471,59356.0,59355.0,2.76180294]
[1723898870515,0.13692471,59356.0,59355.0,2.85620294]
[1723898871134,0.13692471,59356.0,59355.0,1.95943728]
[1723898871345,0.13692471,59356.0,59355.0,2.0878165]
[1723898871598,0.13692471,59356.0,59355.0,1.56470386]
[1723898871834,0.13692471,59356.0,59355.0,1.62356186]
[1723898872055,0.13692471,59356.0,59355.0,1.55546038]
[1723898872720,0.13692471,59356.0,59355.0,1.52645876]
[1723898872959,0.13692471,59356.0,59355.0,1.52649529]
[1723898873167,0.13692471,59356.0,59355.0,1.65237816]
[1723898873341,0.13692471,59356.0,59355.0,1.75237816]
[1723898873998,0.13692471,59356.0,59355.0,1.77537816]
[1723898874207,0.13692471,59356.0,59355.0,1.75017133]
[1723898874616,0.1368826,59356.0,59355.0,1.75017133]
[1723898875692,0.1368826,59356.0,59355.0,1.7502315]
[1723898876310,0.1368826,59356.0,59355.0,1.64957994]
[1723898877155,0.1368826,59356.0,59355.0,1.7250401]
[1723898878179,0.1368826,59356.0,59355.0,1.35130357]
[1723898879196,0.1368826,59356.0,59355.0,1.27584347]
[1723898881027,0.1368826,59356.0,59355.0,1.27582179]
[1723898881475,0.1368826,59356.0,59355.0,1.32609607]
[1723898883476,0.1368826,59356.0,59355.0,1.27582241]
[1723898883683,0.1368826,59356.0,59355.0,1.32609607]
[1723898884304,0.1368826,59356.0,59355.0,1.26916893]
[1723898884508,0.1368826,59356.0,59355.0,1.27581698]
[1723898888490,0.1368826,59356.0,59355.0,1.27582256]
[1723898889253,0.1368826,59356.0,59355.0,1.32607215]
[1723898892042,0.1368826,59356.0,59355.0,1.27582256]
[1723898892679,0.1368826,59356.0,59355.0,1.27582586]
[1723898892880,0.1368826,59356.0,59355.0,1.32607545]
[1723898893202,0.1368826,59356.0,59355.0,1.32607272]
[1723898893427,0.1368826,59356.0,59355.0,1.27582586]
[1723898893876,0.1368826,59356.0,59355.0,1.32607272]
[1723898894083,0.1368826,59356.0,59355.0,1.27582586]
[1723898896886,0.1368826,59356.0,59355.0,1.21889527]
[1723898897084,0.1368826,59356.0,59355.0,1.2758311]
[1723898900408,0.1368826,59356.0,59355.0,1.32607796]
[1723898901256,0.1368826,59356.0,59355.0,1.42318818]
[1723898902564,0.1368826,59356.0,59355.0,1.42321532]
[1723898904099,0.1368826,59356.0,59355.0,1.37294132]
[1723898905154,0.1368826,59356.0,59355.0,1.24790859]
[1723898905393,0.1368826,59356.0,59355.0,1.3729511]
[1723898906064,0.13784044,59356.0,59355.0,0.85753922]
[1723898906264,0.13784044,59356.0,59355.0,0.76042381]
[1723898907661,0.13784044,59356.0,59355.0,0.71080951]
[1723898907968,0.13784044,59356.0,59355.0,1.01315296]
[1723898908164,0.13784044,59356.0,59355.0,0.74643696]
[1723898908364,0.13784044,59356.0,59355.0,0.71080951]
[1723898908541,0.13784044,59356.0,59355.0,0.72480951]
[1723898909519,0.13784044,59356.0,59355.0,1.01315779]
[1723898913033,0.13784044,59356.0,59355.0,0.76044179]
[1723898913457,0.13784044,59356.0,59355.0,1.01315779]
[1723898916441,0.13784044,59356.0,59355.0,0.72481743]
[1723898916659,0.13784044,59356.0,59355.0,1.01315295]
[1723898917489,0.13784044,59356.0,59355.0,0.70348339]
[1723898917685,0.13784044,59356.0,59355.0,1.0131336]
[1723898917891,0.13784044,59356.0,59355.0,0.81078893]
[1723898918100,0.13784044,59356.0,59355.0,1.06350493]
[1723898919118,0.13784044,59356.0,59355.0,0.81078893]
[1723898919628,0.13784044,59356.0,59355.0,1.06350493]
[1723898920000,0.13784044,59356.0,59355.0,0.81078893]
[1723898921297,0.13784044,59356.0,59355.0,0.7604176]
[1723898921502,0.13784044,59356.0,59355.0,0.81078386]
[1723898922777,0.13784044,59356.0,59355.0,0.8107781]
[1723898924036,0.13784044,59356.0,59355.0,0.72480499]
[1723898925329,0.13784044,59356.0,59355.0,0.71080499]
[1723898925537,0.13784044,59356.0,59355.0,0.05442607]
[1723898925760,0.26419644,59356.0,59355.0,0.01910447]
[1723898925982,0.76962044,59356.0,59355.0,0.01910447]
[1723898926422,0.51690844,59356.0,59355.0,0.03310447]
[1723898926629,0.51790844,59356.0,59355.0,0.03310447]
[1723898926868,0.51790844,59356.0,59355.0,0.01910447]
[1723898927080,0.51990844,59356.0,59355.0,0.03010447]
[1723898927286,0.26419644,59356.0,59355.0,0.03010447]
[1723898927493,0.26419644,59356.0,59355.0,0.01610447]
[1723898927665,0.51690844,59356.0,59355.0,0.01610447]
[1723898927876,0.51690844,59356.0,59355.0,0.03010447]
[1723898928284,0.51690844,59356.0,59355.0,0.01610447]
[1723898928697,0.51690844,59356.0,59355.0,0.02610447]
[1723898930002,0.26419644,59356.0,59355.0,0.02610447]
[1723898931195,0.61130844,59356.0,59355.0,0.02610447]
[1723898935735,0.69920672,59356.0,59355.0,0.02610447]
[1723898936151,0.61130844,59356.0,59355.0,0.02610447]
[1723898938627,0.86702044,59356.0,59355.0,0.02610447]
[1723898941815,0.86702044,59356.0,59355.0,0.00510447]
[1723898942128,0.86702044,59356.0,59355.0,0.02210447]
[1723898943578,0.86702044,59356.0,59355.0,0.00510447]
[1723898943800,0.98018991,59356.0,59355.0,0.00510447]
[1723898943970,0.98018991,59356.0,59355.0,0.00810447]
[1723898944441,0.97718991,59356.0,59355.0,0.00510447]
[1723898944958,0.86402044,59356.0,59355.0,0.00710447]
[1723898945158,0.86402044,59356.0,59355.0,0.01210447]
[1723898945364,0.86402044,59356.0,59355.0,0.00710447]
[1723898945762,0.86402044,59356.0,59355.0,0.01010447]
[1723898948313,1.11673244,59356.0,59355.0,0.01010447]
[1723898949574,1.11773244,59356.0,59355.0,0.01010447]
[1723898950029,1.11973244,59356.0,59355.0,0.01010447]
[1723898950383,1.11673244,59356.0,59355.0,0.01010447]
[1723898952439,1.11773244,59356.0,59355.0,0.01010447]
[1723898952623,1.11673244,59356.0,59355.0,0.01010447]
[1723898953607,1.11973244,59356.0,59355.0,0.01010447]
[1723898954819,1.11673244,59356.0,59355.0,0.01010447]
[1723898956075,1.11773244,59356.0,59355.0,0.01010447]
[1723898956742,1.11973244,59356.0,59355.0,0.01010447]
[1723898957516,1.23290271,59356.0,59355.0,0.01010447]
[1723898958301,1.29475827,59356.0,59355.0,0.01010447]
[1723898958944,1.29175827,59356.0,59355.0,0.01010447]
[1723898959494,1.29275827,59356.0,59355.0,0.01010447]
[1723898960038,1.29475827,59356.0,59355.0,0.01010447]
[1723898960839,1.181588,59356.0,59355.0,0.01010447]
[1723898961039,1.179588,59356.0,59355.0,0.01010447]
[1723898961444,1.178588,59356.0,59355.0,0.01010447]
[1723898962164,1.179588,59356.0,59355.0,0.01010447]
[1723898962363,1.181588,59356.0,59355.0,0.01010447]
[1723898963218,1.30094383,59356.0,59355.0,0.01010447]
[1723898963817,1.37674281,59356.0,59355.0,0.01010447]
[1723898964609,1.30094383,59356.0,59355.0,0.01010447]
[1723898965171,1.35149614,59356.0,59355.0,0.00810447]
[1723898965369,1.35149614,59356.0,59355.0,0.00510447]
[1723898965592,1.47449837,59356.0,59355.0,0.00510447]
[1723898965801,1.47649837,59356.0,59355.0,0.00510447]
[1723898965931,1.47749837,59356.0,59355.0,0.00510447]
[1723898966131,1.55129735,59356.0,59355.0,0.00510447]
[1723898966334,1.52604742,59356.0,59355.0,0.00510447]
[1723898966592,1.72921037,59356.0,59355.0,0.00510447]
[1723898966743,1.83027568,59356.0,59355.0,0.00510447]
[1723898966946,1.83127568,59356.0,59355.0,0.00510447]
[1723898967372,1.73021037,59356.0,59355.0,0.00510447]
[1723898967599,1.83127568,59356.0,59355.0,0.00510447]
[1723898968258,1.83130086,59356.0,59355.0,0.00510447]
[1723898968406,1.73021037,59356.0,59355.0,0.00510447]
[1723898968839,1.85654201,59356.0,59355.0,0.00510447]
[1723898969241,1.73021037,59356.0,59355.0,0.00510447]
[1723898969444,1.85654201,59356.0,59355.0,0.00510447]
[1723898969618,2.03414201,59356.0,59355.0,0.00510447]
[1723898970255,2.00888092,59356.0,59355.0,0.00510447]
[1723898970410,2.00888552,59356.0,59355.0,0.00510447]
[1723898971967,1.90781037,59356.0,59355.0,0.00510447]
[1723898972172,0.91859984,59346.0,59345.0,0.0009064]
[1723898972366,1.05809984,59346.0,59345.0,0.0009064]
[1723898972743,1.05509984,59346.0,59345.0,0.0009064]
[1723898973329,1.05809984,59346.0,59345.0,0.0059064]
[1723898973558,1.05809984,59346.0,59345.0,0.0079064]
[1723898973969,1.05809984,59346.0,59345.0,0.0059064]
[1723898974230,1.05809984,59346.0,59345.0,0.0069064]
[1723898974436,1.14949984,59346.0,59345.0,0.0069064]
[1723898974841,1.14949984,59346.0,59345.0,0.0019064]
[1723898975156,1.14949984,59346.0,59345.0,0.0029064]
[1723898975552,1.15249984,59346.0,59345.0,0.0019064]
[1723898975752,1.14949984,59346.0,59345.0,0.0019064]
[1723898975959,1.15249984,59346.0,59345.0,0.0009064]
[1723898976399,1.15249984,59346.0,59345.0,0.0019064]
[1723898977695,1.14949984,59346.0,59345.0,0.0019064]
[1723898977894,1.15249984,59346.0,59345.0,0.0019064]
[1723898980941,1.26794982,59346.0,59345.0,0.0019064]
[1723898987334,1.14949984,59346.0,59345.0,0.0019064]
[1723898987740,1.15049984,59346.0,59345.0,0.0019064]
[1723898989457,1.15249984,59346.0,59345.0,0.0019064]
[1723898991366,1.21437868,59346.0,59345.0,0.0019064]
[1723898992495,1.38593322,59346.0,59345.0,0.0019064]
[1723898992718,1.52672654,59346.0,59345.0,0.0019064]
[1723898993328,1.77948154,59346.0,59345.0,0.0019064]
[1723898993734,1.82996154,59346.0,59345.0,0.0009064]
[1723898993939,1.83096154,59346.0,59345.0,0.0009064]
[1723898994519,1.78048154,59346.0,59345.0,0.0009064]
[1723898995103,1.78148154,59346.0,59345.0,0.0009064]
[1723898995297,1.78048154,59346.0,59345.0,0.0009064]
[1723898995529,1.78348154,59346.0,59345.0,0.0009064]
[1723898996022,1.69408154,59346.0,59345.0,0.0009064]
[1723898996221,1.64968822,59346.0,59345.0,0.0009064]
[1723898999711,1.82728822,59346.0,59345.0,0.0009064]
[1723899001275,1.87776404,59346.0,59345.0,0.0009064]
[1723899001681,1.82728822,59346.0,59345.0,0.0009064]
[1723899001913,1.99884276,59346.0,59345.0,0.0009064]
[1723899002327,2.04931858,59346.0,59345.0,0.0009064]
[1723899005335,1.99884276,59346.0,59345.0,0.0009064]
[1723899006384,2.07459242,59346.0,59345.0,0.0009064]
[1723899006807,2.07460396,59346.0,59345.0,0.0009064]
[1723899007797,1.89700396,59346.0,59345.0,0.0009064]
[1723899008577,1.82124276,59346.0,59345.0,0.0009064]
[1723899009389,1.9222577,59346.0,59345.0,0.0009064]
[1723899009789,2.0998577,59346.0,59345.0,0.0009064]
[1723899010125,1.99884276,59346.0,59345.0,0.0009064]
[1723899011402,0.91874684,59336.0,59335.0,0.0010754]
[1723899011565,1.24658022,59336.0,59335.0,0.0010754]
[1723899012396,1.50137722,59336.0,59335.0,0.0010754]
[1723899013031,1.50237722,59336.0,59335.0,0.0090754]
[1723899013238,1.63588228,59336.0,59335.0,0.0090754]
[1723899013449,1.63488228,59336.0,59335.0,0.0010754]
[1723899013680,1.63488228,59336.0,59335.0,0.0030754]
[1723899013907,1.63588228,59336.0,59335.0,0.0100754]
[1723899014363,1.50137722,59336.0,59335.0,0.0030754]
[1723899015082,1.50137722,59336.0,59335.0,0.0040754]
[1723899025403,1.58227722,59336.0,59335.0,0.0040754]
[1723899027052,1.65809045,59336.0,59335.0,0.0040754]
[1723899027262,1.75383176,59336.0,59335.0,0.0040754]
[1723899028527,1.80437692,59336.0,59335.0,0.0040754]
[1723899029331,1.75383176,59336.0,59335.0,0.0040754]
[1723899029649,1.80437715,59336.0,59335.0,0.0040754]
[1723899030200,1.75383176,59336.0,59335.0,0.0040754]
[1723899030606,1.80437802,59336.0,59335.0,0.0040754]
[1723899030824,1.75383176,59336.0,59335.0,0.0040754]
[1723899031184,1.8958495,59336.0,59335.0,0.0040754]
[1723899032865,1.8958495,59336.0,59335.0,0.0030754]
[1723899033080,1.8958495,59336.0,59335.0,0.0010754]
[1723899033293,2.0734495,59336.0,59335.0,0.0010754]
[1723899033516,2.0734495,59336.0,59335.0,0.0020754]
[1723899033707,2.0734495,59336.0,59335.0,0.0010754]
[1723899034119,2.0734495,59336.0,59326.0,0.0009064]
[1723899034120,1.31641484,59327.0,59326.0,0.0009064]
[1723899034271,1.67624849,59327.0,59326.0,0.0009064]
[1723899034477,1.54984822,59327.0,59326.0,0.0009064]
[1723899034919,1.64424822,59327.0,59326.0,0.0009064]
[1723899035318,1.82184822,59327.0,59326.0,0.0009064]
[1723899035595,1.99340276,59327.0,59326.0,0.0009064]
[1723899036207,1.14373784,59326.0,59315.0,0.12412916]
[1723899036391,1.51987122,59326.0,59315.0,0.12412916]
[1723899036617,1.64614592,59326.0,59315.0,0.12412916]
[1723899036921,1.81770046,59326.0,59320.0,0.0760064]
[1723899037438,1.82870046,59326.0,59325.0,0.0019064]
[1723899037899,1.84070046,59326.0,59325.0,0.0029064]
[1723899038697,1.81540368,59326.0,59325.0,0.0029064]
[1723899039073,1.99300355,59326.0,59325.0,0.0029064]
[1723899039467,1.99298012,59326.0,59325.0,0.0029064]
[1723899040533,1.89202576,59326.0,59325.0,0.0029064]
[1723899040958,1.74932576,59326.0,59325.0,0.0029064]
[1723899041160,1.79979241,59326.0,59325.0,0.0029064]
[1723899041569,1.74932576,59326.0,59325.0,0.0029064]
[1723899041774,1.79979241,59326.0,59325.0,0.0029064]
[1723899041972,1.57777122,59326.0,59325.0,0.0029064]
[1723899042204,1.62823787,59326.0,59325.0,0.0029064]
[1723899042651,1.57377122,59326.0,59325.0,0.0029064]
[1723899042865,1.14333122,59326.0,59325.0,0.0029064]
[1723899043629,1.14233122,59326.0,59325.0,0.0029064]
[1723899043832,1.14333122,59326.0,59325.0,0.0633064]
[1723899044061,1.23773122,59326.0,59325.0,0.0633064]
[1723899044448,1.23673122,59326.0,59325.0,0.1390064]
[1723899049921,1.23973122,59326.0,59325.0,0.1390064]
[1723899050993,1.23973122,59326.0,59325.0,0.0786064]
[1723899051600,1.14533122,59326.0,59325.0,0.0786064]
[1723899054430,1.23973122,59326.0,59325.0,0.0029064]
[1723899054633,1.29088104,59326.0,59325.0,0.0029064]
[1723899060944,1.54572104,59326.0,59325.0,0.0029064]
[1723899061120,1.29288104,59326.0,59325.0,0.0029064]
[1723899061711,1.34334442,59326.0,59325.0,0.0029064]
[1723899062164,1.59618442,59326.0,59325.0,0.0029064]
[1723899062892,1.24976942,59326.0,59325.0,0.0029064]
[1723899063102,1.14415622,59326.0,59325.0,0.0029064]
[1723899063476,1.1946196,59326.0,59325.0,0.0029064]
[1723899064340,1.4474596,59326.0,59325.0,0.0029064]
[1723899064531,1.1956196,59326.0,59325.0,0.0029064]
[1723899064871,1.1986196,59326.0,59325.0,0.0029064]
[1723899065275,1.1946196,59326.0,59325.0,0.0029064]
[1723899065662,1.44948484,59326.0,59325.0,0.0029064]
[1723899065988,1.44848484,59326.0,59325.0,0.0029064]
[1723899066207,1.45148484,59326.0,59325.0,0.0029064]
[1723899066503,1.48709622,59326.0,59325.0,0.0029064]
[1723899066926,1.45148484,59326.0,59325.0,0.0029064]
[1723899067127,1.40099622,59326.0,59325.0,0.0029064]
[1723899067330,1.14815622,59326.0,59325.0,0.0029064]
[1723899067962,1.40099622,59326.0,59325.0,0.0029064]
[1723899068571,1.19866691,59326.0,59325.0,0.0029064]
[1723899068715,1.37022145,59326.0,59325.0,0.0029064]
[1723899068917,1.62306145,59326.0,59325.0,0.0029064]
[1723899069190,1.66695076,59326.0,59325.0,0.0029064]
[1723899069395,1.48984369,59326.0,59325.0,0.0029064]
[1723899069979,1.39544369,59326.0,59325.0,0.0029064]
[1723899070317,1.41411076,59326.0,59325.0,0.0029064]
[1723899070843,1.48931076,59326.0,59325.0,0.0029064]
[1723899071263,1.74215076,59326.0,59325.0,0.0029064]
[1723899071468,1.48931076,59326.0,59325.0,0.0029064]
[1723899071628,1.5903655,59326.0,59325.0,0.0029064]
[1723899071830,1.8432055,59326.0,59325.0,0.0029064]
[1723899072258,1.5903655,59326.0,59325.0,0.0029064]
[1723899072458,1.24921096,59326.0,59325.0,0.0029064]
[1723899072674,1.34365089,59326.0,59325.0,0.1452064]
[1723899072927,1.33865089,59326.0,59325.0,0.1452064]
[1723899073243,1.31337699,59326.0,59325.0,0.1452064]
[1723899073454,1.21897699,59326.0,59325.0,0.1452064]
[1723899073665,0.46592168,59326.0,59325.0,0.1452064]
[1723899073880,0.56032168,59326.0,59325.0,0.1452064]
[1723899074347,0.81316168,59326.0,59325.0,0.1452064]
[1723899074768,0.87487785,59326.0,59325.0,0.1432064]
[1723899075183,0.88587785,59326.0,59325.0,0.1432064]
[1723899077643,0.80116168,59326.0,59325.0,0.1432064]
[1723899084090,1.05400168,59326.0,59325.0,0.0793064]
[1723899084299,1.05400168,59326.0,59325.0,0.0009064]
[1723899086464,1.05400168,59326.0,59325.0,0.1404064]
[1723899086668,0.80116168,59326.0,59325.0,0.1404064]
[1723899087873,1.05400168,59326.0,59325.0,0.1404064]
[1723899088099,0.80116168,59326.0,59325.0,0.1404064]
[1723899089368,0.92230565,59326.0,59325.0,0.1404064]
[1723899090089,0.92230565,59326.0,59325.0,0.0779064]
[1723899094691,0.82790565,59326.0,59325.0,0.0779064]
[1723899094941,0.92230565,59326.0,59325.0,0.0779064]
[1723899096944,0.80116168,59326.0,59325.0,0.0779064]
[1723899098476,0.80116168,59326.0,59325.0,0.1421064]
[1723899099379,0.16906168,59326.0,59325.0,0.1421064]
[1723899099595,0.23360284,59326.0,59325.0,0.1421064]
[1723899100253,0.2275607,59326.0,59325.0,0.1421064]
[1723899100485,0.2255607,59326.0,59325.0,0.1421064]
[1723899100736,0.2285607,59326.0,59325.0,0.1421064]
[1723899100939,0.1021407,59326.0,59325.0,0.1421064]
[1723899101160,0.2285607,59326.0,59325.0,0.1421064]
[1723899102689,0.4814007,59326.0,59325.0,0.1421064]
[1723899103902,0.2285607,59326.0,59325.0,0.1421064]
[1723899105404,0.54200205,59326.0,59325.0,0.1421064]
[1723899105646,0.28916205,59326.0,59325.0,0.1421064]
[1723899106626,0.2285607,59326.0,59325.0,0.1421064]
[1723899107243,0.28916383,59326.0,59325.0,0.1421064]
[1723899107462,0.16274383,59326.0,59325.0,0.1421064]
[1723899107673,0.2285607,59326.0,59325.0,0.1421064]
[1723899108295,0.28916399,59326.0,59325.0,0.1421064]
[1723899108712,0.16274399,59326.0,59325.0,0.1421064]
[1723899109333,0.1021407,59326.0,59325.0,0.1421064]
[1723899109551,0.2285607,59326.0,59325.0,0.1421064]
[1723899110294,0.0077407,59326.0,59325.0,0.3949504]
[1723899110534,0.006825,59326.0,59325.0,0.81856957]
[1723899110801,0.006825,59326.0,59325.0,1.10706506]
[1723899111341,0.003825,59326.0,59325.0,1.10706506]
[1723899111605,0.003825,59326.0,59325.0,1.2786196]
[1723899112619,0.0047407,59326.0,59325.0,1.2786196]
[1723899112880,0.0047407,59326.0,59325.0,1.27860979]
[1723899113359,0.0047407,59326.0,59325.0,1.2429612]
[1723899113622,0.0057407,59326.0,59325.0,1.2559612]
[1723899114007,0.0067407,59326.0,59325.0,1.2679612]
[1723899118991,0.005825,59326.0,59325.0,1.2679612]
[1723899119587,0.005825,59326.0,59325.0,1.26796275]
[1723899119787,0.005825,59326.0,59325.0,1.24661494]
[1723899120020,0.005825,59326.0,59325.0,1.26796292]
[1723899129306,0.005825,59326.0,59325.0,1.30362091]
[1723899131845,0.005825,59326.0,59325.0,1.29162091]
[1723899131846,0.004825,59326.0,59325.0,1.29162091]
[1723899132333,0.004825,59326.0,59325.0,1.27862091]
[1723899132334,0.000825,59326.0,59325.0,1.27862091]
[1723899132531,0.001825,59326.0,59325.0,1.29262091]
[1723899133353,0.001825,59326.0,59325.0,1.30362091]
[1723899133883,0.000825,59326.0,59325.0,1.27862091]
[1723899134079,0.000825,59326.0,59325.0,1.29262091]
[1723899134279,0.000825,59326.0,59325.0,1.30662091]
[1723899134684,0.000825,59326.0,59325.0,1.24961494]
[1723899134890,0.000825,59326.0,59325.0,1.30662226]
[1723899138914,0.000825,59326.0,59325.0,1.30662215]
[1723899147175,0.000825,59326.0,59325.0,1.30662058]
[1723899147571,0.0017407,59326.0,59325.0,0.80093258]
[1723899147821,0.0017407,59326.0,59325.0,0.48817804]
[1723899151412,0.0017407,59326.0,59325.0,0.48817845]
[1723899154033,0.0791407,59326.0,59325.0,0.48817845]
[1723899154864,0.0791407,59326.0,59325.0,0.45252285]
[1723899155216,0.64076477,59326.0,59325.0,0.05025685]
[1723899155411,0.6168007,59326.0,59325.0,0.05026588]
[1723899155627,0.6168007,59326.0,59325.0,0.0289064]
[1723899155628,0.67739535,59326.0,59325.0,0.0289064]
[1723899156645,1.02831506,59326.0,59325.0,0.0289064]
[1723899157797,1.18307535,59326.0,59325.0,0.0289064]
[1723899160056,0.93023535,59326.0,59325.0,0.0289064]
[1723899160465,0.8696407,59326.0,59325.0,0.0289064]
[1723899172061,0.6168007,59326.0,59325.0,0.0289064]
[1723899172269,0.0017407,59326.0,59325.0,0.0289064]
[1723899172656,0.1281607,59326.0,59325.0,0.0289064]
[1723899173561,0.0017407,59326.0,59325.0,0.0289064]
[1723899174062,0.1281607,59326.0,59325.0,0.0289064]
[1723899181990,0.3810007,59326.0,59325.0,0.0289064]
[1723899182498,0.1281607,59326.0,59325.0,0.0289064]
[1723899182727,0.0017407,59326.0,59325.0,0.0289064]
[1723899182929,0.2225607,59326.0,59325.0,0.0289064]
[1723899187438,0.28316418,59326.0,59325.0,0.0289064]
[1723899191571,0.28316418,59326.0,59325.0,0.05026126]
[1723899191876,0.2225607,59326.0,59325.0,0.05026126]
[1723899192650,0.2225607,59326.0,59325.0,0.19046126]
[1723899193052,0.2225607,59326.0,59325.0,0.12986126]
[1723899194428,0.2225607,59326.0,59325.0,0.05026126]
[1723899197868,0.28316292,59326.0,59325.0,0.05026126]
[1723899198148,0.28316292,59326.0,59325.0,0.0289064]
[1723899201194,0.53600292,59326.0,59325.0,0.0289064]
[1723899210952,0.28316292,59326.0,59325.0,0.1715064]
[1723899211660,0.2225607,59326.0,59325.0,0.1715064]
[1723899212850,0.4754007,59326.0,59325.0,0.1715064]
[1723899213580,0.47535856,59326.0,59325.0,0.1715064]
[1723899214023,0.22251856,59326.0,59325.0,0.1715064]
[1723899214916,0.47535856,59326.0,59325.0,0.1715064]
[1723899215806,0.47535856,59326.0,59325.0,0.1084064]
[1723899216066,0.47535856,59326.0,59325.0,0.0289064]
[1723899216802,0.22251856,59326.0,59325.0,0.0289064]
[1723899217267,0.47535856,59326.0,59325.0,0.0289064]
[1723899217510,0.53595961,59326.0,59325.0,0.0289064]
[1723899229424,0.78879961,59326.0,59325.0,0.0289064]
[1723899238264,0.78879961,59326.0,59325.0,0.05025033]
[1723899238671,0.78879961,59326.0,59325.0,0.05025023]
[1723899239282,0.78879961,59326.0,59325.0,0.0289064]
[1723899239492,0.78879961,59326.0,59325.0,0.05025008]
[1723899242569,0.78879961,59326.0,59325.0,0.0289064]
[1723899243154,0.78879961,59326.0,59325.0,0.05025069]
[1723899243734,0.78879961,59326.0,59325.0,0.05025132]
[1723899249258,0.83943221,59326.0,59325.0,0.05025132]
[1723899249586,0.78879961,59326.0,59325.0,0.0289064]
[1723899249723,0.83943221,59326.0,59325.0,0.0289064]
[1723899250707,0.53595961,59326.0,59325.0,0.0289064]
[1723899254828,0.78879961,59326.0,59325.0,0.0289064]
[1723899255028,0.53595961,59326.0,59325.0,0.0289064]
[1723899255865,0.8394353,59326.0,59325.0,0.0289064]
[1723899256065,0.86475315,59326.0,59325.0,0.0289064]
[1723899256477,0.86475029,59326.0,59325.0,0.0289064]
[1723899257094,0.61191029,59326.0,59325.0,0.0289064]
[1723899257896,0.86475029,59326.0,59325.0,0.0289064]